Cogmind - Beta 15 @@@ ROGUE MODE // 2025.07.29 @ 18:07:24 Player: Duduxx Result: Destroyed by S-27 Virus with Autogun Performance ------------- Evolutions (5) 2500 Regions Visited (7) 1400 Robots Destroyed (122) 610 Value Destroyed (4831) 4831 Prototype IDs (4) 80 Alien Tech Used (0) 0 Bonus (224) 224 TOTAL SCORE: 9645 Bonus ------- High Alert Combat Kills 95 Follower Combat Kills 282 Friendly Fire -153 Cogmind --------- Core Integrity 0/1000 Matter 295/300 Energy 99/100 System Corruption 2% Temperature Cool (0) Movement Core (50) Location -5/Factory Parts ------- > --- POWER (2) -------- (None) > --- PROPULSION (4) --- (None) > --- UTILITY (9) ------ Enhanced Optical Array Advanced Targeting Computer Core Analyzer Armor Integrity Analyzer > --- WEAPON (2) ------- (None) > --- INVENTORY (5) ---- Nuclear Pulse Thruster Nuclear Pulse Thruster Nuclear Pulse Thruster Heavy Beamcaster Plasma Sword Peak State ------------ > --- POWER ------------ Light Angular Momentum Engine Light Angular Momentum Engine > --- PROPULSION ------- Gravmag Array Gravmag Array > --- UTILITY ---------- Improved Heat Sink Coolant Injector Large Storage Unit Advanced Weight Redist. System Advanced Targeting Computer Armor Integrity Analyzer System Shield > --- WEAPON ----------- Heavy Laser Thermic Laser > --- INVENTORY -------- Improved Deuterium Engine Fission Core Fission Core Neutrino Core Carbon-fiber Leg Gravmag Array Xenon Bombardment Thruster Improved Heat Sink Hardened Light Armor Plating Missile Launcher Phasing Sabre [Rating: 65] Favorites ----------- Power Micro Nuclear Core Engine Light Deuterium Engine Power Core Micro Nuclear Core Propulsion Improved Carbon-fiber Leg Treads Light Treads Leg Improved Carbon-fiber Leg Wheel Compact Wheel Hover Unit Gravmag Array Flight Unit Nuclear Pulse Thruster Utility Large Storage Unit Device Coolant Injector Storage Large Storage Unit Processor Advanced Visual Processing Unit Hackware System Shield Protection Hardened Heavy Armor Plating Weapon Heavy Laser Energy Gun Heavy Laser Energy Cannon Ion Cannon Ballistic Gun Assault Rifle Ballistic Cannon Light Cannon Launcher Missile Launcher Impact Weapon Great Maul Slashing Weapon Phasing Sabre Build | -11 -10 -9 -8 -7 -6 -6 -5 ------- Run | Yrd Mat Mat Mat Fac Fac Ext Fac Slots Evolved 10 | . . 2 2 2 2 . 2 Power 1 | . . . 1 . . . . Propulsion 2 | . . . 1 . 1 . . Utility 7 | . . 2 . 2 1 . 2 Weapon . | . . . . . . . . Parts Attached 128 | 6 3 12 25 43 3 26 10 Power 21 | 1 1 1 7 6 . 5 . Engine 13 | 1 1 . 4 3 . 4 . Core 8 | . . 1 3 3 . 1 . Reactor . | . . . . . . . . Propulsion 33 | 2 . 3 10 7 1 6 4 Treads 4 | 2 . 1 . . . . 1 Leg 18 | . . . 7 7 1 3 . Wheel 5 | . . 2 3 . . . . Hover 5 | . . . . . . 3 2 Flight 1 | . . . . . . . 1 Utility 43 | 1 2 4 4 18 2 8 4 Device 24 | . 1 1 3 12 2 3 2 Storage 2 | 1 1 . . . . . . Processor 7 | . . 1 1 1 . 2 2 Hackware 3 | . . . . 2 . 1 . Protection 7 | . . 2 . 3 . 2 . Artifact . | . . . . . . . . Weapon 31 | 2 . 4 4 12 . 7 2 Energy Gun 16 | . . 1 4 7 . 4 . Energy Cannon 5 | . . 1 . 4 . . . Ballistic Gun 2 | 2 . . . . . . . Ballistic Cannon 2 | . . 1 . . . 1 . Launcher 2 | . . 1 . 1 . . . Special Weapon . | . . . . . . . . Impact Weapon 1 | . . . . . . 1 . Slashing Weapon 3 | . . . . . . 1 2 Piercing Weapon . | . . . . . . . . Special Melee Weapon . | . . . . . . . . Unidentified Prototypes 2 | . . . . 1 . . 1 Corrupted Parts 3 | . . . . . . 3 . System Corruption 8 | . . . . . . 8 . Parts Lost 86 | . 2 4 10 35 . 26 9 Power 18 | . 1 1 3 5 . 7 1 Propulsion 19 | . . 1 3 8 . 4 3 Utility 29 | . . 2 2 12 . 9 4 Weapon 20 | . 1 . 2 10 . 6 1 Highest Loss Streak 11 | . 2 3 3 8 . 11 7 To Critical Strikes . | . . . . . . . . Average Backups 10 | 1 3 6 13 12 10 11 3 Power 1 | . . . 1 1 1 3 . Propulsion 2 | 1 2 1 2 3 2 2 1 Utility 2 | . . 2 2 3 3 2 . Weapon 3 | . . 2 7 4 3 3 1 Tool/Special . | . . . . . . . . Unused Backups 20 | . . 2 4 4 . 6 4 Power 6 | . . 1 1 2 . 2 . Propulsion 7 | . . . . 2 . 3 2 Utility 3 | . . . 1 . . 1 1 Weapon 4 | . . 1 2 . . . 1 Tool/Special . | . . . . . . . . Average Slot Usage (%) 89 | . 96 91 98 93 89 87 54 Engine 7 | . 14 2 12 9 . 6 1 Core 4 | . . 6 4 4 13 5 . Treads 2 | . 28 17 . . . . 1 Leg 14 | . . . 24 22 17 6 . Hover 2 | . . . . . . 9 6 Device 17 | . 10 13 16 17 25 21 13 Storage 7 | . 14 11 9 7 6 5 . Processor 10 | . . 10 9 8 13 13 19 Protection 3 | . . 5 1 5 . 3 . Energy Gun 8 | . . 7 15 7 6 8 . Energy Cannon 4 | . . 9 2 6 6 2 . Peak Build Rating 65 | 6 7 15 40 49 51 65 63 Average Rating 42 | 4 6 12 36 45 48 58 46 On Entrance 22 | . 6 6 15 37 43 51 25 Naked Turns . | . . . . . . . . Heaviest Build 68 | 13 29 40 54 68 51 53 23 Greatest Support 77 | 40 40 40 54 60 62 77 42 Greatest Overweight (x) 4 | . . 1 2 1 1 3 4 Average Overweight (x) . | . . . . . . . . Largest Inventory Capacity 15 | 8 15 15 15 15 15 15 5 Average Capacity 14 | 7 12 15 15 15 15 14 5 Most Carried 15 | 3 6 10 15 15 11 15 5 Average Carried 11 | 1 4 7 13 12 10 12 3 Final Capacity 15 | 8 15 15 15 15 15 5 5 Final Carried 12 | 3 5 10 12 10 11 3 5 Class Distribution -------------------- 79% | Mutant 17% | Scavenger-Mutant Dominant Class ---------------- Mutant | -10/Materials Mutant | -9/Materials Mutant | -8/Materials Mutant | -7/Factory Mutant | -6/Factory Scavenger-Mutant | -6/Extension Mutant | -5/Factory Resources | -11 -10 -9 -8 -7 -6 -6 -5 ----------- Run | Yrd Mat Mat Mat Fac Fac Ext Fac Matter Collected 2161 | 207 45 294 203 656 . 649 107 Remotely . | . . . . . . . . Salvage Created 5240 | . 168 466 1364 2071 . 1005 166 Parts 227 | . 10 26 66 90 . 25 10 Haulers Intercepted 4 | . 1 . 2 1 . . . Recyclers Shooed 8 | . . . 3 4 . 1 . Parts Field Recycled . | . . . . . . . . Retrieved Matter . | . . . . . . . . Parts Self-Destructed . | . . . . . . . . Prevented . | . . . . . . . . Kills | -11 -10 -9 -8 -7 -6 -6 -5 ------- Run | Yrd Mat Mat Mat Fac Fac Ext Fac Combat Hostiles Destroyed 100 | . 1 12 28 42 . 15 2 Melee 2 | . . . . . . . 2 Guns 52 | . 1 1 26 14 . 10 . Cannons 36 | . . 8 1 22 . 5 . AOE 9 | . . 3 . 6 . . . Classes Destroyed 15 | . 3 3 5 3 . 1 . Worker 2 | . . . 1 . . . 1 Builder 2 | . . . . 2 . . . Tunneler 3 | . . 1 . 1 . . 1 Hauler 4 | . 1 . 2 1 . . . Recycler 2 | . 1 . . 1 . . . Mechanic 1 | . . . 1 . . . . Operator 2 | . . . 2 . . . . Watcher 5 | . . 2 1 2 . . . Swarmer 13 | . . . 7 6 . . . Grunt 50 | . 1 11 13 19 . 6 . Brawler 4 | . . . . 2 . 2 . Duelist 3 | . . . . . . 3 . Sentry 17 | . . 1 7 4 . 4 1 Hunter 5 | . . . 1 4 . . . Programmer 8 | . . . . 7 . . 1 Guerrilla 1 | . . . . . . 1 . Best Kill Streak 8 | . 2 8 7 7 . 5 2 Combat Bots Only 6 | . 1 6 4 6 . 5 1 Max Kills in Single Turn 3 | . 1 2 1 3 . 1 1 Gunslinging . | . . . . . . . . Exploded 3 | . . 1 . 3 . . . Melee 1 | . . . . . . . 1 Uniques/NPCs Destroyed . | . . . . . . . . Combat | -11 -10 -9 -8 -7 -6 -6 -5 -------- Run | Yrd Mat Mat Mat Fac Fac Ext Fac Hostile Shots Fired 1332 | . 69 62 184 486 . 390 141 Missed 491 | . 17 20 57 160 . 184 53 Hits 841 | . 52 42 127 326 . 206 88 Melee 9 | . . . . 5 . 4 . Projectile 832 | . 52 42 127 321 . 202 88 AOE 2 | . . . . . . 1 1 Critical Strikes 32 | . 1 1 5 16 . 7 2 Part Disruptions 1 | . . . . 1 . . . Damage Taken 11469 | . 617 593 1478 4636 . 2580 1565 Core 2535 | . 123 56 230 696 . 416 1014 Absorbed by Shields 692 | . . . 277 181 . 168 66 Core Remaining (%) 57 | 100 50 86 58 . . 51 . Volleys Fired 416 | . 18 33 102 171 . 92 . Largest 2 | . 2 2 2 2 . 2 . Hottest 154 | . 40 100 132 143 . 154 . Shots Fired 799 | . 36 62 203 326 . 172 . Gun 532 | . 36 19 191 159 . 127 . Cannon 250 | . . 39 12 162 . 37 . Launcher 17 | . . 4 . 5 . 8 . Special . | . . . . . . . . Kinetic 54 | . 36 9 . 5 . 4 . Thermal 630 | . . 30 173 300 . 127 . Explosive 17 | . . 4 . 5 . 8 . Electromagnetic 98 | . . 19 30 16 . 33 . Robot Hit Streak 19 | . 4 13 15 19 . 16 . Robot Miss Streak 7 | . 3 4 4 7 . 3 . Penetration Max . | . . . . . . . . Secondary Targets 8 | . . . 8 . . . . Max Gunslinging Chain 1 | . . . 1 . . . . Shots Hit Robots 502 | . 20 44 140 186 . 104 8 Core Hits 231 | . 7 25 58 92 . 44 5 Critical Kills 1 | . 1 . . . . . . Critical Parts Destroyed . | . . . . . . . . Critical Strikes 17 | . 1 . 4 5 . 6 1 Burn 15 | . . . 4 5 . 6 . Destroy 1 | . 1 . . . . . . Sever 1 | . . . . . . . 1 Melee Attacks 19 | . . . . . . 8 11 Impact 3 | . . . . . . 3 . Slashing 16 | . . . . . . 5 11 Piercing . | . . . . . . . . Sneak Attacks 2 | . . . . . . . 2 Combat Hostiles . | . . . . . . . . Follow-up Attacks . | . . . . . . . . Damage Inflicted 11961 | . 215 1190 2499 5499 . 2100 458 Guns 6241 | . 212 191 2284 2004 . 1550 . Cannons 3355 | . . 508 140 2157 . 550 . Explosions 1692 | . . 490 . 1202 . . . Melee 424 | . . . . . . . 424 Ramming 249 | . 3 1 75 136 . . 34 Kinetic 428 | . 212 123 . 93 . . . Thermal 8687 | . . 437 2193 4401 . 1656 . Explosive 1208 | . . 438 . 770 . . . Electromagnetic 965 | . . 191 231 99 . 444 . Impact . | . . . . . . . . Slashing 424 | . . . . . . . 424 Piercing . | . . . . . . . . Highest Corruption 45 | . . . . 45 . 8 2 Average Corruption 28 | . . . . 31 . 6 1 Corruption Purged . | . . . . . . . . Corruption Blocked . | . . . . . . . . Effects 199 | . . . . 188 . 11 . Message Errors 42 | . . . . 41 . 1 . Matter Fused 35 | . . . . 31 . 4 . Heat Flow Errors 26 | . . . . 25 . 1 . Energy Discharges 23 | . . . . 22 . 1 . Parts Rejected 5 | . . . . 5 . . . Parts Fused 2 | . . . . 2 . . . Data Loss (minor) 20 | . . . . 17 . 3 . Data Loss (major) 4 | . . . . 4 . . . Misfires 7 | . . . . 6 . 1 . Alerts 4 | . . . . 4 . . . Misdirections 10 | . . . . 10 . . . Weapon Failures 21 | . . . . 21 . . . Overload Shots . | . . . . . . . . Overflow Damage 488 | . . 11 . 417 . . 60 Projectiles 66 | . . . . 66 . . . Explosions 360 | . . 11 . 349 . . . Melee 62 | . . . . 2 . . 60 Knockbacks . | . . . . . . . . Impact . | . . . . . . . . Kinetic . | . . . . . . . . Secondary . | . . . . . . . . Self-Inflicted Damage 401 | . . 27 . 358 . . 16 Shots 5 | . . 1 . 4 . . . Rammed 9 | . 1 2 . . . . 6 Targets Rammed 34 | . 1 2 12 13 . . 6 Kicked 25 | . . . 12 13 . . . Crushed . | . . . . . . . . Highest Temperature 309 | . 30 16 277 309 . 230 . Average Temperature 82 | . 18 7 102 90 . 63 . Received Heat Transfer 3748 | . 276 309 672 1312 . 1061 118 Effects 6 | . . . 3 3 . . . Energy Bleed 1 | . . . . 1 . . . Interference 5 | . . . 3 2 . . . Siege Activations . | . . . . . . . . Martial Activations . | . . . . . . . . Shielding Activations . | . . . . . . . . Robots Disrupted 1 | . . . . . . 1 . Combat Hostiles 1 | . . . . . . 1 . Robots Corrupted 1 | . . . . 1 . . . Combat Hostiles . | . . . . . . . . Parts Fried 2 | . . . . 2 . . . Impact Corruptions 1 | . . . . 1 . . . Robots Melted 1 | . . . 1 . . . . Combat Hostiles 1 | . . . 1 . . . . Parts Melted 44 | . . 1 9 20 . 14 . Heat Transferred 17157 | . . 914 4995 7534 . 3714 . Parts Sabotaged . | . . . . . . . . Parts Stolen . | . . . . . . . . Parts Stripped . | . . . . . . . . Power Chain Reactions 2 | . . 2 . . . . . Alert | -11 -10 -9 -8 -7 -6 -6 -5 ------- Run | Yrd Mat Mat Mat Fac Fac Ext Fac Maximum Alert Level 2 | . . . 1 2 1 . . Low Security (%) 82 | 100 100 100 83 70 22 100 100 Level 1 13 | . . . 16 20 77 . . Level 2 3 | . . . . 9 . . . Level 3 . | . . . . . . . . Level 4 . | . . . . . . . . Level 5 . | . . . . . . . . High Security . | . . . . . . . . Max Security . | . . . . . . . . Peak Influence 685 | . 25 133 338 685 334 167 106 Initial 334 | . . . 29 151 334 77 24 Average 107 | . 4 77 90 150 248 79 8 Influence Increases 3814 | . 32 359 798 1448 4 963 210 Destroy 0b10 Robot/C 2160 | . 20 240 560 840 . 460 40 Destroy 0b10 Robot/NC 115 | . 10 15 35 35 . 10 10 Destroy Leader 480 | . 2 54 126 226 . 62 10 Allied During Kill 47 | . . . . . . 47 . Successful Hack 100 | . . 13 . 43 4 40 . Disable Machine 240 | . . . 30 135 . 75 . Destroy Structure 162 | . . 22 2 94 . 44 . Partial Spotted 30 | . . . 15 . . 15 . Lose Combat Pursuer 480 | . . 15 30 75 . 210 150 Influence Decreases 3708 | . 32 289 534 1098 530 1070 155 Entered New Map 682 | . . . 41 183 350 81 27 Time Decay 2093 | . 30 259 393 592 180 531 108 Lost Part 700 | . 2 30 100 323 . 225 20 Lost Ally 233 | . . . . . . 233 . Squads Dispatched 27 | . . 1 2 20 . 3 1 Investigation 8 | . . . 1 4 . 3 . Extermination 7 | . . . . 6 . . 1 Reinforcement 10 | . . 1 1 8 . . . Assault 1 | . . . . 1 . . . Garrison 1 | . . . . 1 . . . Intercept . | . . . . . . . . Searches Triggered . | . . . . . . . . Construction Impeded 2 | . . . . 2 . . . Haulers Reinforced 2 | . . . . 2 . . . Active Scanning Responses . | . . . . . . . . Cargo Convoy Interrupts . | . . . . . . . . Stealth | -11 -10 -9 -8 -7 -6 -6 -5 --------- Run | Yrd Mat Mat Mat Fac Fac Ext Fac Distress Signals 16 | . 1 2 5 3 . 2 3 Communications Jammed . | . . . . . . . . Distress Signals . | . . . . . . . . Times Spotted 201 | . 9 22 45 63 . 41 21 Peak Tracking Total 12 | . 6 6 6 6 . 6 12 Tactical Retreats 20 | . . 1 2 5 . 9 3 Traps | -11 -10 -9 -8 -7 -6 -6 -5 ------- Run | Yrd Mat Mat Mat Fac Fac Ext Fac Traps Triggered 7 | . . . 1 2 . 4 . Indirectly . | . . . . . . . . Trap Hack Attempts . | . . . . . . . . Triggered . | . . . . . . . . Disarmed . | . . . . . . . . Reprogrammed . | . . . . . . . . Reused . | . . . . . . . . Traps Extracted . | . . . . . . . . Installed . | . . . . . . . . Triggered . | . . . . . . . . Machines | -11 -10 -9 -8 -7 -6 -6 -5 ---------- Run | Yrd Mat Mat Mat Fac Fac Ext Fac Machines Disabled 16 | . . . 2 9 . 5 . Max in Single Turn 3 | . . . 1 3 . 1 . Energy Cycler 3 | . . . . . . 3 . Machines Repaired . | . . . . . . . . Machines Dismantled . | . . . . . . . . Machines Sabotaged . | . . . . . . . . Overloaded Fab Kills . | . . . . . . . . Hacking | -11 -10 -9 -8 -7 -6 -6 -5 --------- Run | Yrd Mat Mat Mat Fac Fac Ext Fac Machines Accessed 20 | . . 2 1 7 2 8 . Terminals 18 | . . 2 1 6 1 8 . Fabricators . | . . . . . . . . Repair Stations . | . . . . . . . . Recycling Units . | . . . . . . . . Scanalyzers 2 | . . . . 1 1 . . Garrison Access . | . . . . . . . . Total Hacks 39 | . . 3 2 16 3 15 . Successful 19 | . . 2 1 5 3 8 . Failed 20 | . . 1 1 11 . 7 . Catastrophic 8 | . . . . 5 . 3 . Database Lockouts . | . . . . . . . . Manual 11 | . . 1 . 9 . 1 . Terminals 35 | . . 3 2 14 1 15 . Fabricators . | . . . . . . . . Repair Stations . | . . . . . . . . Recycling Units . | . . . . . . . . Scanalyzers 4 | . . . . 2 2 . . Garrison Access . | . . . . . . . . Terminal Hacks 16 | . . 2 1 4 1 8 . Record 2 | . . . . . . 2 . Prototype ID Bank 1 | . . 1 . . . . . Open Door 5 | . . . . . 1 4 . Level Access Points 1 | . . 1 . . . . . Emergency Access Points 1 | . . . . 1 . . . Alert Level 4 | . . . 1 3 . . . Zone Layout 2 | . . . . . . 2 . Fabricator Hacks . | . . . . . . . . Repair Station Hacks . | . . . . . . . . Recycling Unit Hacks . | . . . . . . . . Scanalyzer 3 | . . . . 1 2 . . Insert Component 2 | . . . . 1 1 . . Analyze 1 | . . . . . 1 . . Garrison Access Hacks . | . . . . . . . . Unauthorized Hacks . | . . . . . . . . Terminals . | . . . . . . . . Fabricators . | . . . . . . . . Repair Stations . | . . . . . . . . Recycling Units . | . . . . . . . . Scanalyzers . | . . . . . . . . Garrison Access . | . . . . . . . . Data Cores Recovered 1 | . . . 1 . . . . Used . | . . . . . . . . Hacking Detections 16 | . . 2 1 7 1 5 . Full Trace Events 7 | . . . . 4 . 3 . Feedback Events . | . . . . . . . . Feedback Blocked . | . . . . . . . . Robot Schematics Acquired . | . . . . . . . . Robots Built . | . . . . . . . . Authchips . | . . . . . . . . Time . | . . . . . . . . Total Robot Build Rating . | . . . . . . . . Part Schematics Acquired 1 | . . . . . 1 . . Parts Built . | . . . . . . . . Authchips . | . . . . . . . . Time . | . . . . . . . . Total Part Build Rating . | . . . . . . . . Parts Repaired . | . . . . . . . . Time . | . . . . . . . . Parts Recycled . | . . . . . . . . Recycled Matter . | . . . . . . . . Retrieved Matter . | . . . . . . . . Retrieved Components . | . . . . . . . . Parts Scanalyzed 1 | . . . . . 1 . . Part Schematics Acquired 1 | . . . . . 1 . . Parts Damaged . | . . . . . . . . Bothacking | -11 -10 -9 -8 -7 -6 -6 -5 ------------ Run | Yrd Mat Mat Mat Fac Fac Ext Fac Used RIF Installer . | . . . . . . . . Robots Hacked . | . . . . . . . . Non-combat . | . . . . . . . . Combat . | . . . . . . . . Robot Hacks Applied . | . . . . . . . . Relay Couplers Released . | . . . . . . . . Fabnet Peak Effective % . | . . . . . . . . Robots Rewired 12 | . . . . . . 12 . Allies Hacked . | . . . . . . . . Hacks Repelled . | . . . . . . . . Allies | -11 -10 -9 -8 -7 -6 -6 -5 -------- Run | Yrd Mat Mat Mat Fac Fac Ext Fac Total Allies 13 | . . . . . . 13 . Largest Group 7 | . . . . . . 7 . Highest-Rated Group 216 | . . . . . . 216 . Highest-Rated Ally 39 | . . . . . . 39 . Total Orders . | . . . . . . . . Ally Attacks 71 | . . . . . . 71 . Total Damage 989 | . . . . . . 989 . Kills 10 | . . . . . . 10 . Allies Corrupted . | . . . . . . . . Allies Melted . | . . . . . . . . Intel | -11 -10 -9 -8 -7 -6 -6 -5 ------- Run | Yrd Mat Mat Mat Fac Fac Ext Fac Active Infowar (turns) 7965 | . 178 761 1281 3249 363 1526 607 Optics 7763 | . . 737 1281 3249 363 1526 607 Sensors 57 | . . . . 57 . . . Structural 358 | . 178 180 . . . . . Robot Analysis Total . | . . . . . . . . Derelict Logs Recovered . | . . . . . . . . Drone Launches . | . . . . . . . . Drone Recoveries . | . . . . . . . . Exploration | -11 -10 -9 -8 -7 -6 -6 -5 ------------- Run | Yrd Mat Mat Mat Fac Fac Ext Fac Turns Passed 8417 | 66 217 761 1281 3265 363 1785 679 Spaces Moved 5287 | 37 100 386 739 1575 248 1575 627 Core 187 | 4 . . . . . 8 175 Treads 564 | 33 100 329 4 . . . 98 Legs 2795 | . . . 702 1575 248 270 . Wheels 90 | . . 57 33 . . . . Hover 1651 | . . . . . . 1297 354 Flight . | . . . . . . . . Fastest Speed 50 | 50 160 100 105 126 123 56 50 Average Speed 121 | 148 160 160 120 165 142 74 90 Slowest Speed 260 | 160 160 240 260 200 195 200 250 Overloaded Moves . | . . . . . . . . Propulsion Burnouts . | . . . . . . . . Robots Hopped . | . . . . . . . . Potential Cave-ins . | . . . . . . . . Cave-ins Triggered . | . . . . . . . . Exploration Rate (%) 35 | 3 29 34 69 50 8 74 16 Regions Visited 7 Branch Regions 1 Pre-discovered Areas . | . . . . . . . . Known Exits Taken 1 | . . 1 . . . . . Unknown Exits Taken 6 | 1 1 . 1 1 1 1 . Scrap Searched . | . . . . . . . . Spaces Dug 22 | . . . . . . 22 . Terrain Destroyed 182 | . . 21 . 99 . 62 . Melee . | . . . . . . . . Projectile 1 | . . . . . . 1 . AOE 181 | . . 21 . 99 . 61 . Terrain Rammed . | . . . . . . . . Walls Destroyed . | . . . . . . . . Machines Disabled . | . . . . . . . . Actions | -11 -10 -9 -8 -7 -6 -6 -5 --------- Run | Yrd Mat Mat Mat Fac Fac Ext Fac Total 6407 | 45 123 463 928 1874 257 1997 720 Wait 160 | . . 11 5 2 5 81 56 Move 5280 | 36 99 385 738 1574 247 1574 627 Hop . | . . . . . . . . Pick Up 91 | 3 2 8 19 37 2 17 3 Fast Attach 66 | 6 1 8 12 14 1 15 9 Attach 72 | . 1 4 12 32 1 19 3 Detach 27 | . . 5 8 2 . 9 3 Swap 26 | . 1 3 2 14 1 5 . Drop 50 | . . 4 18 14 . 12 2 Fire 416 | . 18 33 102 171 . 92 . Melee 18 | . . . . . . 7 11 Ram 7 | . . . . 1 . . 6 Kick 25 | . . . 12 13 . . . Crush 3 | . 1 2 . . . . . Escape Stasis 51 | . . . . . . 51 . Rewire 115 | . . . . . . 115 . Trap . | . . . . . . . . Miscellaneous . | . . . . . . . . Route ------- -11/Scrapyard -10/Materials -9/Materials (discovered 4 exits: *Mat x3 / [*Sto]) -8/Materials (discovered 2 exits: *Fac x2) -7/Factory (discovered 2 exits: *Fac x2) -6/Factory -6/Extension -5/Factory History --------- Turn | Location | Event 34 | -11/Scrapyard | Discovered new exit (range 16) 67 | -11/Scrapyard | Entered Materials 236 | -10/Materials | Discovered new exit (range 13) 284 | -10/Materials | Entered another Materials area 284 | -9/Materials | Evolved 2 slots: Utility x2 329 | -9/Materials | Build established: Mutant 505 | -9/Materials | Lost 3 parts (1p1n1u) 956 | -9/Materials | Discovered new exit (range 5) 1008 | -9/Materials | Discovered new exit (range 17) 1021 | -9/Materials | Identified exit to Materials 1045 | -9/Materials | Entered another Materials area 1045 | -8/Materials | Evolved 2 slots: Power x1, Propulsion x1 1749 | -8/Materials | Discovered new exit (range 5) 1812 | -8/Materials | Lost 3 parts (1p1n1u) 2234 | -8/Materials | Lost 3 parts (1p1n1w) 2270 | -8/Materials | Discovered new exit (range 20) 2326 | -8/Materials | Entered Factory 2326 | -7/Factory | Evolved 2 slots: Utility x2 2568 | -7/Factory | System corruption reached 10% 2570 | -7/Factory | System corruption reached 30% 2623 | -7/Factory | Lost 8 parts (1p1n4u2w) 3270 | -7/Factory | Garrison activated, responded to threat 4167 | -7/Factory | Discovered new exit (range 4) 4403 | -7/Factory | Lost 3 parts (1n1u1w) 4569 | -7/Factory | Core integrity fell below 50% 4608 | -7/Factory | Lost 3 parts (1p1n1w) 4728 | -7/Factory | Lost 5 parts (1p1n3u) 5464 | -7/Factory | Core integrity fell below 20% 5521 | -7/Factory | Lost 6 parts (2n2u2w) 5526 | -7/Factory | First assault squad dispatched 5568 | -7/Factory | Discovered new exit (range 13) 5591 | -7/Factory | Entered another Factory area 5591 | -6/Factory | Evolved 2 slots: Propulsion x1, Utility x1 5949 | -6/Factory | Discovered new exit (range 6) 5954 | -6/Factory | Entered Extension 5960 | -6/Extension | Disrupted transfer network 6086 | -6/Extension | Lost 3 parts (1p1n1w) 6210 | -6/Extension | Spotted B-75 Beast 6347 | -6/Extension | Energy Cycler disabled 6347 | -6/Extension | Rescued a captive Derelict 6348 | -6/Extension | Rescued a captive Derelict 6349 | -6/Extension | Rescued a captive Derelict 6352 | -6/Extension | Rescued a captive Derelict 6353 | -6/Extension | Rescued a captive Derelict 6354 | -6/Extension | Rescued a captive Derelict 6354 | -6/Extension | Rescued a captive Derelict 6357 | -6/Extension | Rescued a captive Derelict 6586 | -6/Extension | Lost 5 parts (1p2u2w) 6795 | -6/Extension | Spotted B-75 Beast 6856 | -6/Extension | Lost 7 allies 7059 | -6/Extension | Build established: Scavenger-Mutant 7387 | -6/Extension | Discovered new exit (range 19) 7388 | -6/Extension | Extracted ID and sensor layout for unrecognized location from A7's data core 7511 | -6/Extension | Lost 4 parts (1p2u1w) 7690 | -6/Extension | Lost 4 allies 7739 | -6/Extension | Entered Factory 7739 | -5/Factory | Evolved 2 slots: Utility x2 7768 | -5/Factory | Lost 11 parts (3p2n4u2w) 8018 | -5/Factory | Build established: Mutant 8356 | -5/Factory | Core integrity fell below 50% 8397 | -5/Factory | Lost 7 parts (3n3u1w) 8401 | -5/Factory | Core integrity fell below 20% 8418 | -5/Factory | Destroyed by S-27 Virus with Autogun Last Messages --------------- 08329_ Antigrav System destroyed. 08342_ Assembly Bed disabled. 08343_ Adv. Heat Sink destroyed. 08355_ S-27 Virus destroyed. 08366_ System Shield destroyed. 08373_ Slammed into A-15 Conveyor. 08374_ Destabilizing: System interference. 08374_ Core Analyzer temporarily disabled. 08374_ Coolant Injector temporarily disabled. 08376_ Slammed into R-10 Processor. 08390_ W-25 Informer sends out distress signal. 08390_ Slammed into U-05 Engineer. 08399_ Acquired Prototype Slashing Weapon. 08399_ Identified Plasma Sword. 08400_ Power Conduit explodes. 08400_ U-05 Engineer destroyed. 08400_ Dropped Imp. Focal Shield. 08403_ Coolant Injector destroyed. 08406_ Chain reaction triggered in Lgt. Deuterium Engine. Map ----- +----------------------------------------------------+ | ?????????????????????????????????????????????????? | | ?????????????????????????????????????????????????? | | ?????????????????????????????????????????????????? | | ?????????????????????????????????????????????????? | | ?????????????????????????????????????????????????? | | ?????????????????????????????????????????????????? | | ?????????????????????????????????????????????????? | | ?????????????????????????????????????????????????? | | ?????????????????????????????????????????????????? | | ?????????????????????????????????????????????????? | | ?????????????????????????????????????????????????? | | ?????????????????????????????????????????????????? | | ?????????????????????????????????????????????????? | | ?????????????????????????????????????????????????? | | ?????????????????????????????????????????????????? | | ?????????????????????????????????????????????????? | | ?????????????????????????????????????????????????? | | ?????????????????????????????????????????????????? | | ??????????????????????????????????????????######## | | ??????????????#???????????????????????????# | | ??????????????# ??????????????????????????# | | ??????????????# ????????????????########## ]// | | ??????????????# ??????????????# + ]/! | | ??????????????# ??????????????????##### // | | ??????????????# ###+################### | | ??????????????# @ # # | | ????????????? # # T ?# | | ?????????""" ggk """ """ # ???# | | ?????????""" # """ "Y" # ?????# | | ??????????????# """ " " # """"""???????# | | ??????????????# s# ?????????# | | ??????????????# s###+#######+#####"## | | ??????????????# " | | ??????????????# ] ## | | ??????????????# """ #? | | ??????????????# "T" #? | | ??????????????# #? | | ??????????????# #? | | ??????????????# """ """ """ """ """ """ """ #? | | ??????????????# """ """ """ """ """ """ """ #? | | ??????????????# """ """ """ """ """ """ """ +? | | ??????????????# """ """ """ """ """ #? | | ??????????????# #? | | ??????????????# ? #? | | ??????????????#???################""T""######+###? | | ?????????????????????????????????#"""""#?????????? | | ?????????????????????????????????#######?????????? | | ?????????????????????????????????????????????????? | | ?????????????????????????????????????????????????? | | ?????????????????????????????????????????????????? | +----------------------------------------------------+ Best States ------------- Heat Dissipation 75 Coolant Potential 65 Energy Generation 31 Energy Capacity 480 Matter Stores 300 Matter Capacity 300 Sight Range 22 Robot Scan Range 15 Terrain Scan Density 10 Additional Mass Support 9 Base Temperature (-) 100 Armor Coverage 600 Evasion (%) 55 Targeting Accuracy 8 Target Analysis 5 Core Analysis 6 Armor Integrity Analysis 30 Recoil Reduction 2 Energy Filtering 30 Particle Charging 15 Kinecelleration 30 Offensive Hacking 10 Defensive Hacking 10 Item Schematics ----------------- Xenon Bombardment Thruster | -6/Factory | Scanalyzed Robot Schematics ------------------ None Fabricated ------------ Nothing Repaired ---------- Nothing Alien Tech Used ----------------- None Achievements -------------- None Challenges ------------ None Game ------ Seed TrackerNeutronDrive Manual? 0 Play Time 01:11:32 Cumulative 122.4 hours Start 2025.07.27 @ 12:57:04 End 2025.07.29 @ 18:07:24 Sessions 5 Manual Loads 0 Difficulty Rogue Special Mode None Game No. 233 Rogue 233 Adventurer 0 Explorer 0 Win Type - Total 0 Types 0/0/0/0/0/0/0/0/0/0 Lore% 31 Gallery% 48 Achievement% 37 Wizard Run 0 Options --------- Layout 1 ASCII 0 Keyboard 1 Movement Arrows Keybinds 0 Fullscreen 2 Font 24/Smallcaps Map View 50x35 Zoom Use 0% Tactical HUD 1 Map Filters NONE Filters NONE Steam 1 RUN: 086c79c3-505d-4045-97b6-3f921b4fd064